bitfinex/quotes_BTCUSD_20250809
["timestamp","ask_amount","ask_price","bid_price","bid_amount"]
[1754759416549,0.001,116780.0,116770.0,0.85777066]
[1754759416774,0.001,116780.0,116770.0,1.40132524]
[1754759416993,9.866e-05,116780.0,116770.0,1.51905528]
[1754759417212,9.866e-05,116780.0,116770.0,1.67312972]
[1754759417438,0.18288891,116820.0,116800.0,0.17122104]
[1754759417645,0.025707,116810.0,116800.0,0.17435104]
[1754759417877,0.025707,116810.0,116800.0,0.30805104]
[1754759418537,0.02582867,116810.0,116800.0,0.30805104]
[1754759420046,0.19704688,116810.0,116800.0,0.30805104]
[1754759420258,0.17447988,116810.0,116800.0,0.30805104]
[1754759423219,0.00326167,116810.0,116800.0,0.30805104]
[1754759423434,0.00112167,116810.0,116800.0,0.30805104]
[1754759424221,0.00012167,116810.0,116800.0,0.30805104]
[1754759425435,0.00012167,116810.0,116800.0,0.37147289]
[1754759426186,0.00012167,116810.0,116800.0,0.30805104]
[1754759426374,0.00012167,116810.0,116800.0,0.31005104]
[1754759427882,0.00012167,116810.0,116800.0,0.31105104]
[1754759437215,0.00012167,116810.0,116800.0,0.68094926]
[1754759440684,0.00012167,116810.0,116800.0,0.31105104]
[1754759440916,0.00012167,116810.0,116800.0,0.73786393]
[1754759441591,0.00012167,116810.0,116800.0,0.36796571]
[1754759441822,0.00012167,116810.0,116800.0,0.73786393]
[1754759442338,0.00012167,116810.0,116800.0,0.36796571]
[1754759453096,0.00012167,116810.0,116800.0,2.5196515]
[1754759453288,7.67e-06,116810.0,116800.0,2.28317143]
[1754759453542,7.67e-06,116810.0,116800.0,2.17545128]
[1754759453759,7.67e-06,116810.0,116800.0,2.17445128]
[1754759453979,7.67e-06,116810.0,116800.0,2.32652572]
[1754759454427,0.00100767,116810.0,116800.0,2.70042394]
[1754759454643,0.00100767,116810.0,116800.0,2.70542394]
[1754759457236,0.00100767,116810.0,116800.0,2.5513495]
[1754759459445,0.00100767,116810.0,116800.0,2.5286695]
[1754759460195,0.00100767,116810.0,116800.0,1.41897484]
[1754759460399,0.00100767,116810.0,116800.0,2.5286695]
[1754759461574,0.00100767,116810.0,116800.0,1.41897484]
[1754759461892,0.00100767,116810.0,116800.0,2.5286695]
[1754759463031,0.00100767,116810.0,116800.0,2.7945695]
[1754759463257,6.035e-05,116810.0,116800.0,2.7945695]
[1754759463493,6.035e-05,116810.0,116800.0,1.68487484]
[1754759463729,6.035e-05,116810.0,116800.0,2.42467128]
[1754759464180,6.035e-05,116810.0,116800.0,2.7945695]
[1754759465252,6.035e-05,116810.0,116800.0,1.68496484]
[1754759465469,6.035e-05,116810.0,116800.0,2.42476128]
[1754759466939,6.035e-05,116810.0,116800.0,2.7946595]
[1754759467146,6.035e-05,116810.0,116800.0,2.42476128]
[1754759468401,6.035e-05,116810.0,116800.0,2.7946595]
[1754759472049,6.035e-05,116810.0,116800.0,1.68496484]
[1754759472237,6.035e-05,116810.0,116800.0,2.7946595]
[1754759473302,0.00319,116830.0,116820.0,0.17120356]
[1754759473531,0.00515,116830.0,116820.0,1.16624306]
[1754759473768,0.00515,116830.0,116820.0,0.42430658]
[1754759474011,0.00515,116830.0,116820.0,1.16410302]
[1754759474837,0.00515,116830.0,116820.0,1.16610302]
[1754759475655,0.00515,116830.0,116820.0,1.16810302]
[1754759476291,0.00515,116830.0,116820.0,0.7982048]
[1754759476710,0.00515,116830.0,116820.0,0.42830658]
[1754759476914,0.00515,116830.0,116820.0,1.16810302]
[1754759478245,0.00515,116830.0,116820.0,0.42830658]
[1754759478455,0.00515,116830.0,116820.0,0.7982048]
[1754759478617,0.00515,116830.0,116820.0,0.53561902]
[1754759478835,0.00515,116830.0,116820.0,0.90551724]
[1754759478984,0.00515,116830.0,116820.0,0.53557902]
[1754759479200,0.00515,116830.0,116820.0,0.90547724]
[1754759480774,0.00515,116830.0,116820.0,0.31675691]
[1754759480991,0.00515,116830.0,116820.0,0.414516]
[1754759481210,0.00515,116830.0,116820.0,0.30720356]
[1754759482723,0.00515,116830.0,116820.0,0.414516]
[1754759483603,0.1763389,116830.0,116820.0,0.282516]
[1754759483857,0.1763389,116830.0,116820.0,0.30716356]
[1754759484339,0.1763389,116830.0,116820.0,0.13596]
[1754759485075,0.1763389,116830.0,116820.0,0.30716356]
[1754759485978,0.1763389,116830.0,116820.0,0.30712356]
[1754759489033,0.1763389,116830.0,116820.0,0.004]
[1754759489245,0.21368041,116830.0,116820.0,0.13584]
[1754759490404,0.21368041,116830.0,116820.0,0.13384]
[1754759490868,0.1763389,116830.0,116820.0,0.13384]
[1754759491496,0.1763389,116830.0,116820.0,0.13484]
[1754759491735,0.1763389,116830.0,116820.0,0.13284]
[1754759491936,0.1763389,116830.0,116820.0,0.13384]
[1754759492174,0.1763389,116830.0,116820.0,0.002]
[1754759492351,0.1763389,116830.0,116820.0,0.13384]
[1754759492931,0.21368041,116830.0,116820.0,0.1338]
[1754759493138,0.21368041,116830.0,116820.0,0.30500356]
[1754759493349,0.21368041,116830.0,116820.0,0.1338]
[1754759496208,0.21368041,116830.0,116820.0,0.30500356]
[1754759496413,0.1763389,116830.0,116820.0,0.30500356]
[1754759496948,0.1731489,116830.0,116820.0,0.30500356]
[1754759497118,0.1731489,116830.0,116820.0,0.30714356]
[1754759498890,0.1763389,116830.0,116820.0,0.30500356]
[1754759499981,0.0763389,116830.0,116820.0,0.30500356]
[1754759500200,0.0751289,116830.0,116820.0,0.30500356]
[1754759503944,0.10264541,116830.0,116820.0,0.1338]
[1754759506535,0.10264541,116830.0,116820.0,0.002]
[1754759506743,0.0780789,116830.0,116820.0,0.13376]
[1754759508072,0.0780789,116830.0,116820.0,0.002]
[1754759508290,0.16494101,116830.0,116820.0,0.13368]
[1754759508854,0.16494101,116830.0,116820.0,0.13268]
[1754759509241,0.16494101,116830.0,116820.0,0.13168]
[1754759509242,0.20114273,116830.0,116820.0,0.13168]
[1754759509911,0.22784773,116830.0,116820.0,0.13168]
[1754759510334,0.17121821,116810.0,116800.0,0.01164164]
[1754759510559,0.17121821,116810.0,116800.0,0.31658451]
[1754759510845,0.17121821,116810.0,116800.0,0.18498451]
[1754759511069,0.17121821,116810.0,116800.0,0.31658451]
[1754759511261,0.17121821,116810.0,116800.0,0.00519]
[1754759511459,0.17121821,116810.0,116800.0,0.13679]
[1754759511746,0.17121821,116810.0,116800.0,0.14079]
[1754759512747,0.17121821,116810.0,116800.0,0.31202287]
[1754759518482,0.17121821,116810.0,116800.0,0.41933531]
[1754759520502,0.17995716,116810.0,116800.0,0.41933531]
[1754759520917,0.17995716,116810.0,116800.0,0.18042287]
[1754759521119,0.17995716,116810.0,116800.0,0.31202287]
[1754759521927,0.17995716,116810.0,116800.0,0.18042287]
[1754759522175,0.17995716,116810.0,116800.0,0.31202287]
[1754759529012,0.17995716,116810.0,116800.0,0.14079]
[1754759531352,0.17995716,116810.0,116800.0,0.24810244]
[1754759541395,0.17795716,116810.0,116800.0,0.24810244]
[1754759546494,0.17795716,116810.0,116800.0,0.24806244]
[1754759546888,0.17795716,116810.0,116800.0,0.11650244]
[1754759547091,0.17795716,116810.0,116800.0,0.24806244]
[1754759547743,0.17795716,116810.0,116800.0,0.11650244]
[1754759547894,0.17795716,116810.0,116800.0,0.24806244]
[1754759548702,0.17795716,116810.0,116800.0,0.11650244]
[1754759548920,0.17795716,116810.0,116800.0,0.24806244]
[1754759552201,0.2174151,116810.0,116800.0,0.11131244]
[1754759552419,0.30723721,116810.0,116800.0,0.11131244]
[1754759552662,0.33294621,116810.0,116800.0,0.13556]
[1754759552847,0.29545827,116810.0,116800.0,0.13556]
[1754759556058,0.29249827,116810.0,116800.0,0.13556]
[1754759557377,0.29249827,116810.0,116800.0,0.1408]
[1754759561251,0.29049827,116810.0,116800.0,0.1408]
[1754759562021,0.33696572,116810.0,116800.0,0.1408]
[1754759562974,0.29049827,116810.0,116800.0,0.1408]
[1754759566369,0.28175932,116810.0,116800.0,0.1408]
[1754759567350,0.29030012,116810.0,116800.0,0.1408]
[1754759568362,0.29030012,116810.0,116800.0,0.13556]
[1754759573253,0.29030012,116810.0,116800.0,0.13854]
[1754759573398,0.33674776,116810.0,116800.0,0.13854]
[1754759573609,0.33674776,116810.0,116800.0,0.14057]
[1754759585581,0.29030012,116810.0,116800.0,0.14057]
[1754759599015,0.29030012,116810.0,116800.0,0.13556]
[1754759600526,0.29030012,116810.0,116800.0,0.1386]
[1754759600954,0.29030012,116810.0,116800.0,0.14056]
[1754759601565,0.28830012,116810.0,116800.0,0.14056]
[1754759601975,0.33454776,116810.0,116800.0,0.14056]
[1754759623349,0.32854776,116810.0,116800.0,0.14056]
[1754759635483,0.32854776,116810.0,116800.0,0.13752]
[1754759636587,0.32854776,116810.0,116800.0,0.00596]
[1754759636790,0.32854776,116810.0,116800.0,0.13536]
[1754759641880,0.32854776,116810.0,116800.0,0.004]
[1754759642105,0.33150776,116810.0,116800.0,0.004]
[1754759642317,0.33150776,116810.0,116800.0,0.13536]
[1754759642540,0.33150776,116810.0,116800.0,0.004]
[1754759642752,0.33150776,116810.0,116800.0,0.13336]
[1754759642933,0.33150776,116810.0,116800.0,0.13136]
[1754759643142,0.33250776,116810.0,116800.0,0.13136]
[1754759643354,0.33350776,116810.0,116800.0,0.13136]
[1754759644250,0.17123287,116800.0,116790.0,0.06947762]
[1754759644388,0.31004904,116800.0,116790.0,0.20083762]
[1754759644818,0.33576104,116800.0,116790.0,0.20083762]
[1754759645457,0.33576104,116800.0,116790.0,0.20183762]
[1754759647101,0.33576104,116800.0,116790.0,0.20283762]
[1754759648121,0.33576104,116800.0,116790.0,0.20808762]
[1754759676912,0.28528698,116800.0,116790.0,0.20808762]
[1754759678692,0.28330698,116800.0,116790.0,0.20808762]
[1754759681087,0.025712,116800.0,116790.0,0.74923337]
[1754759681323,0.16780629,116810.0,116800.0,0.17123287]
[1754759681324,0.15926549,116810.0,116800.0,0.17123287]
[1754759681526,0.15926549,116810.0,116800.0,0.54316109]
[1754759681747,0.18497349,116810.0,116800.0,0.54625109]
[1754759681948,0.18497349,116810.0,116800.0,0.17635287]
[1754759682488,0.19336482,116810.0,116800.0,0.17635287]
[1754759683192,0.19436482,116810.0,116800.0,0.17635287]
[1754759683393,0.19436482,116810.0,116800.0,0.00512]
[1754759683571,0.18697349,116810.0,116800.0,0.17635287]
[1754759685699,0.19542276,116810.0,116800.0,0.17635287]
[1754759686731,0.18697349,116810.0,116800.0,0.17635287]
[1754759687781,0.18697349,116810.0,116800.0,0.00512]
[1754759689717,0.19561879,116810.0,116800.0,0.00512]
[1754759697207,0.23315831,116810.0,116800.0,0.00512]
[1754759699643,0.19561879,116810.0,116800.0,0.00512]
[1754759702946,0.19558385,116810.0,116800.0,0.00512]
[1754759703176,0.18697349,116810.0,116800.0,0.00512]
[1754759704291,0.02775528,116810.0,116800.0,0.17849328]
[1754759704536,0.19897349,116810.0,116800.0,0.54625109]
[1754759704747,0.17326549,116810.0,116800.0,0.54625109]
[1754759704952,0.17226549,116810.0,116800.0,0.54625109]
[1754759705205,0.17226549,116810.0,116800.0,0.54725109]
[1754759705433,0.17126549,116810.0,116800.0,0.54725109]
[1754759705863,0.17126549,116810.0,116800.0,0.54825109]
[1754759706267,0.17126549,116810.0,116800.0,0.54725109]
[1754759706514,0.17126549,116810.0,116800.0,0.54825109]
[1754759709766,0.17126549,116810.0,116800.0,0.17835287]
[1754759712491,0.17324549,116810.0,116800.0,0.17323287]
[1754759713770,0.17324549,116810.0,116800.0,0.17631287]
[1754759714201,0.17324549,116810.0,116800.0,0.17846287]
[1754759717928,0.17126549,116810.0,116800.0,0.17846287]
[1754759723843,0.17126549,116810.0,116800.0,0.54836109]
[1754759724229,4.728e-05,116810.0,116800.0,0.54836109]
[1754759728098,4.728e-05,116810.0,116800.0,0.17846287]
[1754759728305,4.728e-05,116810.0,116800.0,0.54836109]
[1754759730384,4.728e-05,116810.0,116800.0,0.17846287]
[1754759730586,4.728e-05,116810.0,116800.0,0.54836109]
[1754759733404,4.728e-05,116810.0,116800.0,0.17846287]
[1754759734383,0.17126549,116810.0,116800.0,0.17846287]
[1754759736303,0.17324549,116810.0,116800.0,0.17846287]
[1754759737912,0.00202728,116810.0,116800.0,0.17846287]
[1754759738443,0.17324549,116810.0,116800.0,0.17846287]
[1754759738910,0.17126549,116810.0,116800.0,0.17846287]
[1754759741197,0.17324549,116810.0,116800.0,0.17846287]
[1754759742539,0.17324549,116810.0,116800.0,0.30950287]
[1754759744103,0.17324549,116810.0,116800.0,0.17846287]
[1754759744333,0.17324549,116810.0,116800.0,0.30427287]
[1754759745419,0.21226065,116810.0,116800.0,0.30427287]
[1754759746133,0.21226065,116810.0,116800.0,0.30423287]
[1754759747641,0.21226065,116810.0,116800.0,0.30730287]
[1754759748145,0.21226065,116810.0,116800.0,0.30940287]
[1754759749327,0.17324549,116810.0,116800.0,0.30940287]
[1754759752457,0.17324549,116810.0,116800.0,0.13817]
[1754759754978,0.17324549,116810.0,116800.0,0.30940287]
[1754759761343,0.17126549,116810.0,116800.0,0.30940287]
[1754759780820,0.19697049,116810.0,116800.0,0.30940287]
[1754759783768,0.19895049,116810.0,116800.0,0.30415287]
[1754759784468,0.19895049,116810.0,116800.0,0.30627287]
[1754759784671,0.19895049,116810.0,116800.0,0.30938287]
[1754759787801,0.23796565,116810.0,116800.0,0.30938287]
[1754759790252,0.23796565,116810.0,116800.0,0.13288]
[1754759791613,0.23796565,116810.0,116800.0,0.13599]
[1754759793157,0.23796565,116810.0,116800.0,0.13811]
[1754759793558,0.23796565,116810.0,116800.0,0.30934287]
[1754759793974,0.23598565,116810.0,116800.0,0.30934287]
[1754759798740,0.23598565,116810.0,116800.0,0.13811]
[1754759799153,0.23598565,116810.0,116800.0,0.30934287]
[1754759802827,0.23796565,116810.0,116800.0,0.30934287]
[1754759803029,0.23796565,116810.0,116800.0,0.13811]
[1754759807862,0.23796565,116810.0,116800.0,0.30934287]
[1754759808412,0.23796565,116810.0,116800.0,0.13811]
[1754759810821,0.23796565,116810.0,116800.0,0.00723]
[1754759811015,0.23796565,116810.0,116800.0,0.13803]
[1754759813559,0.23796565,116810.0,116800.0,0.30926287]
[1754759813758,0.23598565,116810.0,116800.0,0.30926287]
[1754759818890,0.23598565,116810.0,116800.0,0.13803]
[1754759819966,0.23598565,116810.0,116800.0,0.13799]
[1754759820148,0.23797565,116810.0,116800.0,0.13799]
[1754759827720,0.23797565,116810.0,116800.0,0.30922287]
[1754759828273,0.23797565,116810.0,116800.0,0.13799]
[1754759828711,0.23598565,116810.0,116800.0,0.30922287]
[1754759836194,0.23598565,116810.0,116800.0,0.13799]
[1754759836616,0.23598565,116810.0,116800.0,0.30922287]
[1754759839486,0.06476744,116810.0,116800.0,0.30922287]
[1754759839703,0.02575228,116810.0,116800.0,0.30922287]
[1754759840779,0.19697049,116810.0,116800.0,0.30922287]
[1754759842210,0.02575228,116810.0,116800.0,0.30922287]
[1754759842632,0.19697049,116810.0,116800.0,0.30922287]
[1754759843417,0.02575228,116810.0,116800.0,0.30922287]
[1754759843612,0.04360515,116810.0,116800.0,0.30922287]
[1754759845510,0.21482336,116810.0,116800.0,0.30922287]
[1754759845935,0.04360515,116810.0,116800.0,0.30922287]
[1754759849000,0.21482336,116810.0,116800.0,0.30922287]
[1754759851342,0.19697049,116810.0,116800.0,0.30922287]
[1754759853614,0.02575228,116810.0,116800.0,0.30922287]
[1754759854431,0.19697049,116810.0,116800.0,0.30922287]
[1754759858987,0.02575228,116810.0,116800.0,0.30922287]
[1754759860149,0.19697049,116810.0,116800.0,0.30922287]
[1754759860374,0.23549265,116810.0,116800.0,0.30922287]
[1754759865258,0.06427444,116810.0,116800.0,0.30922287]
[1754759865456,0.23549265,116810.0,116800.0,0.30922287]
[1754759866056,4.728e-05,116810.0,116800.0,1.04901931]
[1754759866274,4.728e-05,116810.0,116800.0,1.24319386]
[1754759866507,0.2054514,116830.0,116820.0,0.17120356]
[1754759866697,0.1797484,116830.0,116820.0,0.30204356]
[1754759866906,0.1797484,116830.0,116820.0,0.30719356]
[1754759867379,0.20589113,116840.0,116820.0,0.30719356]
[1754759868478,0.20589113,116840.0,116820.0,0.30819356]
[1754759869093,0.20589113,116840.0,116820.0,0.30719356]
[1754759869907,0.2447681,116840.0,116820.0,0.30719356]
[1754759871099,0.1711889,116830.0,116820.0,0.30719356]
[1754759872377,0.1711889,116830.0,116820.0,0.13599]
[1754759872942,0.1731689,116830.0,116820.0,0.13599]
[1754759873987,0.1711889,116830.0,116820.0,0.13599]
[1754759874613,0.1731689,116830.0,116820.0,0.13599]
[1754759877894,0.17120356,116820.0,116810.0,0.24571078]
[1754759878113,0.17120356,116820.0,116810.0,0.37846078]
[1754759879226,0.17120356,116820.0,116810.0,0.37946078]
[1754759880004,0.17120356,116820.0,116810.0,0.38046078]
[1754759880220,0.17120356,116820.0,116810.0,0.24966078]
[1754759880423,0.17120356,116820.0,116810.0,0.38046078]
[1754759884460,0.17120356,116820.0,116810.0,0.20924479]
[1754759884666,0.17120356,116820.0,116810.0,0.380463]
[1754759885098,0.17120356,116820.0,116810.0,0.20924479]
[1754759886492,0.17120356,116820.0,116810.0,0.380463]
[1754759890305,0.16920639,116820.0,116810.0,0.74836405]
[1754759891560,0.16920639,116820.0,116810.0,0.37846583]
[1754759896589,0.16920639,116820.0,116810.0,0.48615642]
[1754759904509,0.16920639,116820.0,116810.0,0.4166788]
[1754759904723,0.17118639,116820.0,116810.0,0.10969059]
[1754759904945,0.20817592,116820.0,116810.0,0.13288]
[1754759905644,0.17413639,116820.0,116810.0,0.13288]
[1754759906481,0.17118639,116820.0,116810.0,0.13288]
[1754759910383,0.17414639,116820.0,116810.0,0.13284]
[1754759910809,0.17414639,116820.0,116810.0,0.002]
[1754759911004,0.17414639,116820.0,116810.0,0.13284]
[1754759911246,0.21125022,116820.0,116810.0,0.002]
[1754759911447,0.21125022,116820.0,116810.0,0.13184]
[1754759913460,0.21125022,116820.0,116810.0,0.13084]
[1754759915253,0.20829022,116820.0,116810.0,0.13084]
[1754759915693,0.17123287,116800.0,116790.0,0.35996811]
[1754759915882,0.17123287,116800.0,116790.0,0.57978022]
[1754759916722,0.17123287,116800.0,116790.0,0.66657447]
[1754759916888,0.17123287,116800.0,116790.0,0.66771573]
[1754759918019,0.17123287,116800.0,116790.0,0.58192148]
[1754759918477,0.17123287,116800.0,116790.0,0.31524947]
[1754759918929,0.17123287,116800.0,116790.0,0.37880641]
[1754759922990,0.17123287,116800.0,116790.0,0.24792641]
[1754759923205,0.17123287,116800.0,116790.0,0.37872641]
[1754759925873,0.17123287,116800.0,116790.0,0.24792641]
[1754759926078,0.17123287,116800.0,116790.0,0.37872641]
[1754759926606,0.17332287,116800.0,116790.0,0.20747888]
[1754759928891,0.17332287,116800.0,116790.0,0.20743888]
[1754759929307,0.17332287,116800.0,116790.0,0.07667888]
[1754759929508,0.17332287,116800.0,116790.0,0.20739888]
[1754759929922,0.18196476,116800.0,116790.0,0.20739888]
[1754759932208,0.18196476,116800.0,116790.0,0.13290126]
[1754759938734,0.18196476,116800.0,116790.0,0.13585126]
[1754759940553,0.18196476,116800.0,116790.0,0.13290126]
[1754759943890,0.18196476,116800.0,116790.0,0.13585126]
[1754759944300,0.18196476,116800.0,116790.0,0.13791126]
[1754759950835,0.17332287,116800.0,116790.0,0.13791126]
[1754759951045,0.17123287,116800.0,116790.0,0.13791126]
[1754759957708,0.17123287,116800.0,116790.0,0.37863641]
[1754759958789,0.17123287,116800.0,116790.0,0.20738888]
[1754759962550,0.17123287,116800.0,116790.0,0.37863641]
[1754759979713,0.17123287,116800.0,116790.0,0.20738888]
[1754759982404,0.18415209,116800.0,116790.0,0.20738888]
[1754759984744,0.18613209,116800.0,116790.0,0.20237888]
[1754759986641,0.18613209,116800.0,116790.0,0.20542888]
[1754759987038,0.18613209,116800.0,116790.0,0.20737888]
[1754759988524,0.17321287,116800.0,116790.0,0.20737888]
[1754759989598,0.17123287,116800.0,116790.0,0.20737888]
[1754759990845,0.17123287,116800.0,116790.0,0.37862641]
[1754759992112,0.17123287,116800.0,116790.0,0.20737888]
[1754759997373,0.17123287,116800.0,116790.0,0.37862641]
[1754759997592,0.20891996,116800.0,116790.0,0.37862641]
[1754760000855,0.03768709,116800.0,116790.0,0.37862641]
[1754760001057,0.20563799,116810.0,116790.0,0.37862641]
[1754760001268,0.2925001,116810.0,116790.0,0.37862641]
[1754760001942,0.2925001,116810.0,116790.0,0.37762641]
[1754760002142,0.2925001,116810.0,116790.0,0.37862641]
[1754760002743,0.2925001,116810.0,116790.0,0.37762641]
[1754760002957,0.33982277,116810.0,116790.0,0.37762641]
[1754760003204,0.33982277,116810.0,116790.0,0.37862641]
[1754760003413,0.33982277,116810.0,116800.0,0.17441287]
[1754760003414,0.25296066,116810.0,116800.0,0.17441287]
[1754760003605,0.17121821,116810.0,116800.0,0.17652287]
[1754760008517,0.17319821,116810.0,116800.0,0.00529]
[1754760011351,0.17319821,116810.0,116800.0,0.00211]
[1754760011562,0.17319821,116810.0,116790.0,0.37480641]
[1754760012568,0.17123287,116800.0,116790.0,0.37480641]
[1754760012807,0.17123287,116800.0,116790.0,0.37791641]
[1754760013584,0.17123287,116800.0,116790.0,0.37691641]
[1754760013786,0.17123287,116800.0,116790.0,0.37791641]
[1754760014309,0.17123287,116800.0,116790.0,0.37691641]
[1754760014471,0.17123287,116800.0,116790.0,0.37791641]
[1754760014976,0.17123287,116800.0,116790.0,0.37891641]
[1754760021340,0.16123287,116800.0,116790.0,0.37891641]
[1754760027289,0.19692621,116810.0,116790.0,0.37891641]
[1754760027870,0.23552895,116810.0,116790.0,0.37891641]
[1754760028108,0.23552895,116810.0,116790.0,0.37791641]
[1754760028520,0.23552895,116810.0,116790.0,0.37891641]
[1754760029157,0.23552895,116810.0,116790.0,0.37473641]
[1754760029362,0.23552895,116810.0,116800.0,0.17431287]
[1754760029574,0.06431074,116810.0,116800.0,0.17629287]
[1754760030029,0.19692621,116810.0,116800.0,0.17629287]
[1754760036714,0.19890621,116810.0,116800.0,0.17629287]
[1754760036937,0.19890621,116810.0,116800.0,0.17123287]
[1754760039173,0.19890621,116810.0,116800.0,0.13076]
[1754760041195,0.19890621,116810.0,116800.0,0.30199287]
[1754760044857,0.19890621,116810.0,116800.0,0.13076]
[1754760046243,0.19890621,116810.0,116800.0,0.30199287]
[1754760046417,0.19890621,116810.0,116800.0,0.30507287]
[1754760046618,0.19890621,116810.0,116800.0,0.13384]
[1754760046857,0.19890621,116810.0,116800.0,0.13076]
[1754760047809,0.23770595,116810.0,116800.0,0.13076]
[1754760058611,0.23770595,116810.0,116800.0,0.13395]
[1754760059413,0.17123287,116800.0,116790.0,0.17457879]
[1754760059616,0.17123287,116800.0,116790.0,0.30742879]
[1754760059831,0.17123287,116800.0,116790.0,0.37690641]
[1754760060668,0.17123287,116800.0,116790.0,0.37790641]
[1754760061094,0.17123287,116800.0,116790.0,0.485597]
[1754760061314,0.19692621,116810.0,116790.0,0.485597]
[1754760061510,0.19692621,116810.0,116800.0,0.00319]
[1754760062386,0.17123287,116800.0,116790.0,0.351747]
[1754760062623,0.17123287,116800.0,116790.0,0.37702641]
[1754760063741,0.17123287,116800.0,116790.0,0.37902641]
[1754760064051,0.17123287,116800.0,116790.0,0.37802641]
[1754760064484,0.17123287,116800.0,116790.0,0.37902641]
[1754760064927,0.17123287,116800.0,116790.0,0.20781888]
[1754760065196,0.21190895,116800.0,116790.0,0.13834126]
[1754760065566,0.21389895,116800.0,116790.0,0.13834126]
[1754760066859,0.21389895,116800.0,116790.0,0.30958879]
[1754760067048,0.17123287,116800.0,116790.0,0.30958879]
[1754760073104,0.17123287,116800.0,116790.0,0.00742126]
[1754760073324,0.17123287,116800.0,116790.0,0.13834126]
[1754760075327,0.17123287,116800.0,116790.0,0.30958879]
[1754760080135,0.21190895,116800.0,116790.0,0.30958879]
[1754760082341,0.21389895,116800.0,116790.0,0.30958879]
[1754760082991,0.21190895,116800.0,116790.0,0.30958879]
[1754760083897,0.21389895,116800.0,116790.0,0.30958879]
[1754760084113,0.21389895,116800.0,116790.0,0.30946879]
[1754760084762,0.21190895,116800.0,116790.0,0.30946879]
[1754760084969,0.21389895,116800.0,116790.0,0.30946879]
[1754760087061,0.21190895,116800.0,116790.0,0.30946879]
[1754760087702,0.21190895,116800.0,116790.0,0.30942879]
[1754760087898,0.21190895,116800.0,116790.0,0.13318126]
[1754760088158,0.21388895,116800.0,116790.0,0.13318126]
[1754760088384,0.23959895,116800.0,116790.0,0.13318126]
[1754760089263,0.23959895,116800.0,116790.0,0.13630126]
[1754760091526,0.23959895,116800.0,116790.0,0.13837126]
[1754760092491,0.19892287,116800.0,116790.0,0.13837126]
[1754760092680,0.19694287,116800.0,116790.0,0.20784888]
[1754760093652,0.19694287,116800.0,116790.0,0.37909641]
[1754760093855,0.19694287,116800.0,116790.0,0.20784888]
[1754760094733,0.19671599,116800.0,116790.0,0.20784888]
[1754760096755,0.19671599,116800.0,116790.0,0.20542889]
[1754760097322,0.23736958,116800.0,116790.0,0.20542889]
[1754760098919,0.23736958,116800.0,116790.0,0.37667642]
[1754760103169,0.23736958,116800.0,116790.0,0.37695515]
[1754760128967,0.23736958,116800.0,116790.0,0.20570762]
[1754760129174,0.23736958,116800.0,116790.0,0.37695515]
[1754760131785,0.23279971,116800.0,116790.0,0.37695515]
[1754760147505,0.23477971,116800.0,116790.0,0.37695515]
[1754760149991,0.23279971,116800.0,116790.0,0.37695515]
[1754760160694,0.18924612,116800.0,116790.0,0.37695515]
[1754760166514,0.16353612,116800.0,116790.0,0.37695515]
[1754760166720,0.18924712,116800.0,116790.0,0.37695515]
[1754760167280,0.16353612,116800.0,116790.0,0.37695515]
[1754760172656,0.16353612,116800.0,116790.0,0.37667515]
[1754760177059,0.23553095,116810.0,116800.0,0.17123287]
[1754760177279,0.19692921,116810.0,116800.0,0.17640287]
[1754760182426,0.17123287,116800.0,116790.0,0.37457515]
[1754760182639,0.17123287,116800.0,116790.0,0.37665515]
[1754760183536,0.17123287,116800.0,116790.0,0.37765515]
[1754760184376,0.17123287,116800.0,116790.0,0.37865515]
[1754760184583,0.20804908,116800.0,116790.0,0.37865515]
[1754760187073,0.17123287,116800.0,116790.0,0.37865515]
[1754760203184,0.17123287,116800.0,116790.0,0.13793]
[1754760203405,0.17123287,116800.0,116790.0,0.30917753]
[1754760204174,0.17123287,116800.0,116790.0,0.13793]
[1754760239634,0.17322287,116800.0,116790.0,0.13276]
[1754760239814,0.21023808,116800.0,116790.0,0.13268]
[1754760240520,0.21023808,116800.0,116790.0,0.13168]
[1754760240703,0.21023808,116800.0,116790.0,0.13068]
[1754760250388,0.17322287,116800.0,116790.0,0.13068]
[1754760250800,0.17322287,116800.0,116790.0,0.13361]
[1754760251683,0.17322287,116800.0,116790.0,0.13565]
[1754760260331,0.17322287,116800.0,116790.0,0.13561]
[1754760282132,0.16963117,116790.0,116780.0,0.11072059]
[1754760282351,0.20591657,116790.0,116780.0,0.11084226]
[1754760282572,0.20884657,116790.0,116780.0,0.13072167]
[1754760282787,0.23455857,116790.0,116780.0,0.13072167]
[1754760282993,0.23162857,116790.0,116780.0,0.13072167]
[1754760283767,0.23162857,116790.0,116780.0,0.13272167]
[1754760288017,0.23162857,116790.0,116780.0,0.00212167]
[1754760288280,0.23162857,116790.0,116780.0,0.13272167]
[1754760289631,0.32142068,116790.0,116780.0,0.00212167]
[1754760289861,0.32142068,116790.0,116780.0,0.13272167]
[1754760290301,0.32142068,116790.0,116780.0,0.13172167]
[1754760291502,0.32142068,116790.0,116780.0,0.13072167]
[1754760292335,0.32242068,116790.0,116780.0,0.13072167]
[1754760292790,0.32442068,116790.0,116780.0,0.13072167]
[1754760293219,0.32442068,116790.0,116780.0,0.13159767]
[1754760296411,0.32149068,116790.0,116780.0,0.13159767]
[1754760311994,0.32149068,116790.0,116780.0,0.13366767]
[1754760312231,0.32149068,116790.0,116780.0,0.13671767]
[1754760320939,0.32149068,116790.0,116780.0,0.13366767]
[1754760328293,0.32149068,116790.0,116780.0,0.00306767]
[1754760328517,0.3389397,116790.0,116780.0,0.13159767]
[1754760328735,0.3418697,116790.0,116780.0,0.13159767]
[1754760329281,0.3418697,116790.0,116780.0,0.13195767]
[1754760331015,0.3389397,116790.0,116780.0,0.13195767]
[1754760332074,0.3418697,116790.0,116780.0,0.13207767]
[1754760333466,0.3389397,116790.0,116780.0,0.13207767]
[1754760337718,0.3389397,116790.0,116780.0,0.00099767]
[1754760337926,0.3389397,116790.0,116780.0,0.13207767]
[1754760338344,0.3389397,116790.0,116780.0,0.13211767]
[1754760339783,0.3389397,116790.0,116780.0,0.00099767]
[1754760339997,0.3389397,116790.0,116780.0,0.13211767]
[1754760340494,0.3389397,116790.0,116780.0,0.00099767]
[1754760340700,0.3389397,116790.0,116780.0,0.13211767]
[1754760342339,0.3389397,116790.0,116780.0,0.00099767]
[1754760342579,0.3389397,116790.0,116780.0,0.13211767]
[1754760343975,0.3389397,116790.0,116780.0,0.00099767]
[1754760344531,0.3389397,116790.0,116780.0,0.13203767]
[1754760345183,0.3389397,116790.0,116780.0,0.13520767]
[1754760347355,0.3389397,116790.0,116780.0,0.13723767]
[1754760394955,0.3369397,116790.0,116780.0,0.13723767]
[1754760425642,0.3389197,116790.0,116780.0,0.13723767]
[1754760458607,0.3389197,116790.0,116780.0,0.13406767]
[1754760460132,0.3389197,116790.0,116780.0,0.13203767]
[1754760462550,0.3389197,116790.0,116780.0,0.13159767]